bitfinex/quotes_BTCUSD_20230831
["timestamp","ask_amount","ask_price","bid_price","bid_amount"]
[1693498689319,0.07464,26840.0,26837.0,0.004]
[1693498689519,0.288,26843.0,26838.0,0.41682553]
[1693498689520,0.07806,26843.0,26838.0,0.41682553]
[1693498689732,0.231919,26844.0,26839.0,0.3]
[1693498689733,0.0828,26844.0,26839.0,0.3]
[1693498689930,0.20772,26849.0,26839.0,0.3]
[1693498689931,0.02,26848.0,26841.0,0.148]
[1693498690132,0.02,26849.0,26842.0,0.34914468]
[1693498690339,0.03639577,26847.0,26842.0,0.34914468]
[1693498691166,0.03639577,26847.0,26843.0,0.36768085]
[1693498691367,0.03639577,26847.0,26844.0,0.3]
[1693498691800,0.10934,26851.0,26844.0,0.3]
[1693498691999,0.09642,26849.0,26845.0,0.04914468]
[1693498692199,0.03654886,26846.0,26844.0,0.3]
[1693498692428,0.03654886,26846.0,26845.0,0.2413]
[1693498692630,0.07518,26848.0,26845.0,0.3]
[1693498693071,0.07518,26848.0,26842.0,0.2573]
[1693498693072,0.22929583,26845.0,26842.0,0.2843]
[1693498693401,0.37636817,26845.0,26841.0,0.3]
[1693498693733,0.14707234,26845.0,26840.0,0.3]
[1693498694554,0.001,26845.0,26841.0,0.075]
[1693498694798,0.067,26845.0,26841.0,0.075]
[1693498694980,0.06544,26845.0,26841.0,0.075]
[1693498695175,0.06562,26845.0,26841.0,0.075]
[1693498695376,0.001,26845.0,26841.0,0.075]
[1693498695816,0.70068085,26847.0,26841.0,0.038]
[1693498695817,0.25946,26847.0,26841.0,0.038]
[1693498695966,0.25946,26847.0,26842.0,0.04914468]
[1693498695967,0.165,26847.0,26842.0,0.04914468]
[1693498696173,0.001,26845.0,26842.0,0.34914468]
[1693498696396,0.001,26845.0,26842.0,0.3]
[1693498696799,0.22938,26847.0,26842.0,0.3]
[1693498696800,0.22986,26847.0,26842.0,0.3]
[1693498697128,0.30921137,26844.0,26842.0,0.3]
[1693498697297,0.30921137,26844.0,26840.0,0.3]
[1693498697509,0.2290293,26843.0,26842.0,0.016]
[1693498697747,0.24934,26846.0,26841.0,0.002]
[1693498697929,0.21844,26846.0,26841.0,0.05114468]
[1693498698148,0.06582,26846.0,26841.0,0.05114468]
[1693498698349,0.06534,26846.0,26841.0,0.002]
[1693498698544,0.0699,26846.0,26841.0,0.002]
[1693498698718,0.29117154,26843.0,26841.0,0.002]
[1693498699120,0.06372,26842.0,26841.0,0.002]
[1693498699323,0.08508,26845.0,26841.0,0.002]
[1693498699650,0.44730085,26845.0,26841.0,0.002]
[1693498699851,0.44292085,26845.0,26841.0,0.002]
[1693498700175,0.44172085,26845.0,26842.0,0.038]
[1693498700391,0.44082085,26845.0,26841.0,0.002]
[1693498700595,0.07368,26845.0,26841.0,0.04914468]
[1693498700753,0.001,26844.0,26842.0,0.037]
[1693498700930,0.29460386,26844.0,26842.0,0.037]
[1693498701338,0.185,26847.0,26838.0,0.02992238]
[1693498701339,0.02,26839.0,26838.0,0.02992238]
[1693498701602,0.02,26838.0,26832.0,0.00046522]
[1693498701800,0.148,26835.0,26832.0,0.00046522]
[1693498701952,0.14707234,26834.0,26832.0,0.00046522]
[1693498702534,0.148,26835.0,26832.0,0.00046522]
[1693498703405,0.21472,26837.0,26832.0,0.00046522]
[1693498703607,0.43872085,26836.0,26832.0,0.00046522]
[1693498703809,0.44010085,26836.0,26832.0,0.00046522]
[1693498704012,0.148,26837.0,26832.0,0.00046522]
[1693498704013,0.21838,26837.0,26832.0,0.00046522]
[1693498704214,0.21838,26837.0,26832.0,0.0496099]
[1693498704215,0.58792085,26837.0,26832.0,0.0496099]
[1693498704448,0.006,26835.0,26832.0,0.44686629]
[1693498704648,0.006,26835.0,26833.0,0.66768085]
[1693498704649,0.001,26834.0,26833.0,0.66768085]
[1693498704852,0.001,26834.0,26833.0,0.36768085]
[1693498704977,0.008,26836.0,26833.0,0.68768085]
[1693498705180,0.008,26836.0,26834.0,0.3]
[1693498705410,0.008,26836.0,26834.0,0.66768085]
[1693498705571,0.008,26836.0,26834.0,0.93998085]
[1693498706639,0.08942,26842.0,26834.0,0.93998085]
[1693498706875,0.23979234,26842.0,26835.0,0.04914468]
[1693498707077,0.09458,26842.0,26835.0,0.04914468]
[1693498707257,0.04016054,26841.0,26835.0,0.04914468]
[1693498707388,0.18723288,26841.0,26835.0,0.04914468]
[1693498707590,0.25029288,26841.0,26835.0,0.04914468]
[1693498707806,0.28800386,26836.0,26834.0,0.5723]
[1693498708019,0.28800386,26836.0,26835.0,0.003]
[1693498708211,0.28800386,26836.0,26834.0,0.3]
[1693498708422,0.28800386,26836.0,26835.0,0.3]
[1693498708423,0.88870471,26836.0,26835.0,0.3]
[1693498708626,0.65568471,26836.0,26833.0,0.3]
[1693498708827,0.07188,26838.0,26833.0,0.3]
[1693498709081,0.21958,26839.0,26833.0,0.34914468]
[1693498709345,0.73865319,26839.0,26834.0,0.011]
[1693498709568,0.73865319,26839.0,26834.0,0.06014468]
[1693498709569,0.59290085,26839.0,26834.0,0.06014468]
[1693498709912,0.06996,26838.0,26835.0,0.003]
[1693498710120,0.07418,26838.0,26833.0,0.3]
[1693498710333,0.22377234,26838.0,26833.0,0.3]
[1693498710532,0.22377234,26838.0,26833.0,0.302]
[1693498710533,0.25117234,26838.0,26833.0,0.302]
[1693498710754,0.25117234,26838.0,26833.0,0.3]
[1693498710755,0.0855,26837.0,26833.0,0.3]
[1693498710953,0.24486988,26836.0,26833.0,0.3]
[1693498711155,0.24486988,26836.0,26835.0,0.001]
[1693498711682,0.08508,26837.0,26833.0,0.3]
[1693498711886,0.07196,26838.0,26834.0,0.001]
[1693498712087,0.07496,26838.0,26834.0,0.001]
[1693498712296,0.30386132,26836.0,26833.0,0.001]
[1693498712502,0.02,26833.0,26832.0,0.00046522]
[1693498712714,0.68368085,26833.0,26832.0,0.00046522]
[1693498712949,1.13243319,26833.0,26832.0,0.00046522]
[1693498713166,0.97360085,26833.0,26832.0,0.00046522]
[1693498713377,0.97360085,26833.0,26820.0,0.0022211]
[1693498713378,0.3916,26821.0,26820.0,0.0022211]
[1693498713586,1.14208085,26821.0,26820.0,0.0022211]
[1693498713810,3.63470507,26821.0,26820.0,0.0022211]
[1693498714019,11.57390732,26821.0,26820.0,0.0022211]
[1693498714229,11.70877026,26821.0,26820.0,0.0022211]
[1693498714445,13.86866527,26821.0,26820.0,0.0022211]
[1693498714660,17.16249102,26821.0,26820.0,0.0022211]
[1693498714873,18.81388237,26821.0,26820.0,0.0022211]
[1693498715081,18.81388237,26821.0,26820.0,0.0052211]
[1693498715082,21.75382954,26821.0,26820.0,0.0052211]
[1693498715294,23.37132983,26821.0,26820.0,0.0052211]
[1693498715507,41.58655303,26821.0,26820.0,0.0052211]
[1693498715721,37.03510553,26821.0,26820.0,0.0052211]
[1693498715932,44.23845362,26821.0,26820.0,0.0052211]
[1693498716146,45.48982819,26821.0,26820.0,0.0052211]
[1693498716358,41.20989341,26821.0,26820.0,0.05736578]
[1693498716572,38.41556391,26821.0,26820.0,0.05436578]
[1693498716862,23.79858335,26821.0,26820.0,0.0052211]
[1693498717088,23.79858335,26821.0,26820.0,0.91482415]
[1693498717089,18.23743388,26821.0,26820.0,0.91482415]
[1693498717302,18.23743388,26821.0,26820.0,0.0052211]
[1693498717303,0.68427923,26821.0,26820.0,0.0052211]
[1693498717509,2.15899855,26821.0,26820.0,0.0052211]
[1693498717722,2.15899855,26821.0,26820.0,0.0082211]
[1693498717723,1.64609767,26821.0,26820.0,0.0082211]
[1693498717927,1.82314894,26821.0,26820.0,0.0082211]
[1693498718190,1.86221676,26821.0,26820.0,0.0082211]
[1693498718408,6.40513175,26821.0,26820.0,0.0112211]
[1693498718620,3.99427477,26821.0,26820.0,0.0082211]
[1693498718828,10.1202416,26821.0,26820.0,0.0112211]
[1693498719040,9.29842623,26821.0,26820.0,0.0112211]
[1693498719276,9.25609413,26821.0,26820.0,0.0112211]
[1693498719484,9.25609413,26821.0,26820.0,0.0082211]
[1693498719485,9.00752631,26821.0,26820.0,0.0082211]
[1693498719711,8.69853373,26821.0,26820.0,0.0112211]
[1693498719915,3.1082513,26821.0,26820.0,0.0112211]
[1693498720129,1.998161,26821.0,26820.0,0.0052211]
[1693498720344,1.998161,26821.0,26820.0,0.0022211]
[1693498720345,1.996161,26821.0,26820.0,0.0022211]
[1693498720584,1.996161,26821.0,26820.0,0.0052211]
[1693498720585,2.94530465,26821.0,26820.0,0.0052211]
[1693498720787,5.47861247,26821.0,26820.0,0.0022211]
[1693498721004,3.80738013,26821.0,26820.0,0.0022211]
[1693498721228,5.34830013,26821.0,26820.0,0.0052211]
[1693498721647,7.97922098,26821.0,26820.0,0.0022211]
[1693498721866,8.16629332,26821.0,26820.0,0.0052211]
[1693498722088,7.99922098,26821.0,26820.0,0.0052211]
[1693498722308,6.99506098,26821.0,26820.0,0.0022211]
[1693498722510,6.99506098,26821.0,26820.0,0.0052211]
[1693498722511,8.89922098,26821.0,26820.0,0.0052211]
[1693498722730,8.07922098,26821.0,26820.0,0.0052211]
[1693498722931,4.30289216,26821.0,26820.0,0.0052211]
[1693498723172,2.09330519,26821.0,26820.0,0.0052211]
[1693498723392,4.64230519,26821.0,26820.0,0.0052211]
[1693498723607,0.36197968,26821.0,26820.0,1.6252211]
[1693498723812,0.47956678,26821.0,26820.0,1.6252211]
[1693498724034,0.1545871,26821.0,26820.0,2.6516611]
[1693498724238,0.01948847,26837.0,26835.0,0.08]
[1693498724515,0.13929546,26836.0,26835.0,0.02]
[1693498724729,0.54296576,26836.0,26835.0,1.42154776]
[1693498724919,0.10750793,26836.0,26835.0,1.42142776]
[1693498725152,0.05845363,26843.0,26841.0,0.5]
[1693498725358,1.55532396,26856.0,26849.0,0.5]
[1693498725359,0.01947809,26854.0,26849.0,0.5]
[1693498725571,0.9974,26860.0,26835.0,1.69016085]
[1693498725572,0.02,26861.0,26854.0,0.5]
[1693498725793,0.175,26855.0,26854.0,0.5]
[1693498725999,0.36768085,26855.0,26854.0,0.5]
[1693498726207,0.36768085,26855.0,26854.0,1.00224]
[1693498726208,0.54268085,26855.0,26854.0,1.00224]
[1693498726618,0.72168085,26855.0,26852.0,1.00224]
[1693498726823,0.72168085,26855.0,26854.0,1.00224]
[1693498726824,0.354,26855.0,26854.0,1.00224]
[1693498727047,0.354,26855.0,26852.0,1.00224]
[1693498727248,0.354,26855.0,26841.0,0.42006776]
[1693498727249,0.02,26851.0,26848.0,0.470318]
[1693498727473,0.3916,26852.0,26848.0,0.44029417]
[1693498727675,0.5,26856.0,26848.0,0.44029417]
[1693498727676,0.57993224,26866.0,26862.0,0.12979418]
[1693498727883,0.59993224,26866.0,26862.0,0.03647856]
[1693498728283,0.175,26864.0,26862.0,0.03647856]
[1693498728723,0.179,26863.0,26862.0,0.03647856]
[1693498728933,0.44112334,26863.0,26862.0,0.03647856]
[1693498729159,0.44112334,26863.0,26854.0,0.006]
[1693498729160,0.59993224,26861.0,26856.0,0.03647856]
[1693498729363,0.59993224,26861.0,26849.0,0.05647856]
[1693498729364,0.02,26855.0,26849.0,0.05647856]
[1693498729587,0.02,26855.0,26850.0,0.020373]
[1693498729588,0.36768085,26851.0,26850.0,0.020373]
[1693498729791,0.21988858,26852.0,26851.0,0.020373]
[1693498730002,0.21988858,26852.0,26851.0,0.02]
[1693498730003,0.37281624,26852.0,26851.0,0.02]
[1693498730212,0.08,26859.0,26851.0,0.02]
[1693498730213,0.52352144,26858.0,26851.0,0.02]
[1693498730430,0.52352144,26858.0,26849.0,0.05647856]
[1693498730431,0.5706,26852.0,26849.0,0.05647856]
[1693498730628,0.5706,26852.0,26845.0,0.06858]
[1693498730629,0.3916,26850.0,26845.0,0.02]
[1693498731049,0.3916,26847.0,26845.0,0.02]
[1693498731266,0.02,26846.0,26845.0,0.02]
[1693498731491,0.02,26846.0,26842.0,0.04]
[1693498731492,2.30043029,26846.0,26842.0,0.04]
[1693498731689,0.3916,26842.0,26839.0,0.06]
[1693498732021,0.96647664,26843.0,26830.0,0.309279]
[1693498732022,0.4116,26840.0,26835.0,0.08]
[1693498732191,0.0481091,26841.0,26830.0,0.02]
[1693498732192,0.02,26832.0,26830.0,0.02]
[1693498732406,0.3916,26836.0,26830.0,0.02]
[1693498732626,0.175,26831.0,26830.0,0.02]
[1693498732823,0.36768085,26836.0,26834.0,0.02]
[1693498733030,0.52,26841.0,26834.0,0.02]
[1693498733031,0.5,26841.0,26834.0,0.02]
[1693498733236,1.26868085,26840.0,26835.0,0.003]
[1693498733480,0.52918085,26838.0,26835.0,0.003]
[1693498733681,0.02,26837.0,26835.0,0.003]
[1693498733886,0.36768085,26836.0,26835.0,0.003]
[1693498734099,0.36768085,26836.0,26835.0,0.023]
[1693498734100,0.29172457,26836.0,26835.0,0.023]
[1693498734312,0.02,26836.0,26835.0,0.023]
[1693498734516,0.02,26837.0,26836.0,0.02]
[1693498734726,0.9,26843.0,26836.0,0.02]
[1693498734934,0.3916,26841.0,26837.0,0.14707234]
[1693498735167,0.8819,26842.0,26838.0,0.02]
[1693498735359,0.9974,26848.0,26836.0,0.08]
[1693498735360,2.21512287,26849.0,26842.0,0.02]
[1693498735569,0.27895311,26848.0,26843.0,0.14707234]
[1693498735792,0.27895311,26848.0,26846.0,0.02]
[1693498735997,0.27895311,26848.0,26847.0,0.14707234]
[1693498736434,0.56408019,26848.0,26847.0,0.14707234]
[1693498736652,1.4125,26854.0,26849.0,0.02]
[1693498736855,0.04394421,26853.0,26850.0,0.14707234]
[1693498737089,0.1615,26852.0,26850.0,0.14707234]
[1693498737309,0.3365,26852.0,26850.0,0.14707234]
[1693498737522,0.52,26857.0,26852.0,0.02]
[1693498737523,0.5,26857.0,26852.0,0.02]
[1693498737730,0.5,26857.0,26853.0,0.14707234]
[1693498737731,0.0448175,26857.0,26853.0,0.14707234]
[1693498738142,0.4364175,26857.0,26853.0,0.14707234]
[1693498738580,0.162,26855.0,26852.0,0.02]
[1693498738771,0.72905824,26855.0,26852.0,0.026]
[1693498739010,0.33745824,26855.0,26852.0,0.026]
[1693498739225,0.178072,26857.0,26855.0,0.02]
[1693498739433,0.178072,26857.0,26856.0,0.02]
[1693498739676,1.45717291,26863.0,26856.0,0.02]
[1693498739677,0.02999898,26862.0,26856.0,0.02]
[1693498739884,1.0,26861.0,26857.0,0.14707234]
[1693498740511,1.0,26861.0,26856.0,0.02]
[1693498740512,0.0057809,26857.0,26856.0,0.02]
[1693498740717,1.75928085,26860.0,26856.0,0.02]
[1693498740940,1.75928085,26860.0,26856.0,0.16707234]
[1693498740941,1.0,26860.0,26856.0,0.16707234]
[1693498741170,1.0,26860.0,26858.0,0.02]
[1693498741381,6.3916,26862.0,26858.0,0.02]
[1693498741594,6.0,26863.0,26858.0,0.16707234]
[1693498741816,5.0,26861.0,26859.0,0.46300466]
[1693498742025,1.5562,26864.0,26859.0,0.02]
[1693498742026,2.00534565,26862.0,26859.0,0.02]
[1693498742278,1.5562,26864.0,26859.0,0.25407046]
[1693498742279,0.149107,26863.0,26859.0,0.25407046]
[1693498742482,0.149107,26863.0,26861.0,0.02]
[1693498742692,0.149107,26863.0,26862.0,0.02]
[1693498743105,1.5562,26864.0,26863.0,0.02]
[1693498743316,1.5562,26864.0,26863.0,0.16707234]
[1693498743587,0.0206,26868.0,26867.0,0.02]
[1693498743804,0.0206,26868.0,26867.0,0.16707234]
[1693498744009,0.0206,26871.0,26869.0,0.02]
[1693498744010,0.34807876,26870.0,26869.0,0.02]
[1693498744215,0.34807876,26870.0,26869.0,0.53475319]
[1693498744216,0.16207876,26870.0,26869.0,0.53475319]
[1693498744424,0.02591071,26871.0,26870.0,0.02]
[1693498744633,0.0206,26872.0,26871.0,0.02]
[1693498744846,0.0206,26872.0,26871.0,0.82269167]
[1693498745054,0.0206,26872.0,26871.0,0.62599901]
[1693498745474,0.0206,26872.0,26871.0,0.38768085]
[1693498746085,0.0206,26873.0,26872.0,0.02]
[1693498746294,0.0206,26873.0,26872.0,0.38768085]
[1693498746512,0.0206,26875.0,26874.0,0.02]
[1693498746709,0.28763942,26885.0,26874.0,0.02]
[1693498746710,0.0206,26886.0,26885.0,0.06]
[1693498746914,0.0206,26886.0,26885.0,0.65475319]
[1693498747333,0.0206,26889.0,26885.0,0.65475319]
[1693498747334,0.05777291,26900.0,26891.0,0.02]
[1693498747538,0.05777291,26900.0,26894.0,0.02]
[1693498747539,1.0206,26900.0,26894.0,0.02]
[1693498747748,0.0206,26900.0,26894.0,0.53475319]
[1693498748161,0.0206,26900.0,26894.0,0.55475319]
[1693498748367,0.0206,26900.0,26899.0,0.02]
[1693498748573,0.0206,26900.0,26899.0,0.53475319]
[1693498748747,0.0206,26902.0,26899.0,0.53475319]
[1693498748990,0.0206,26902.0,26901.0,0.02]
[1693498749208,0.03717291,26910.0,26906.0,0.02]
[1693498749431,0.03717291,26910.0,26901.0,0.51475319]
[1693498749432,0.1855,26902.0,26901.0,0.1]
[1693498749630,0.16207876,26902.0,26901.0,0.1]
[1693498749838,0.3916,26905.0,26901.0,0.02]
[1693498750053,0.148896,26902.0,26901.0,0.02]
[1693498750482,1.67545585,26902.0,26896.0,0.02]
[1693498750683,1.67545585,26902.0,26899.0,0.003]
[1693498750684,0.81521805,26901.0,26899.0,0.003]
[1693498750895,0.3916,26897.0,26888.0,0.23841548]
[1693498751103,0.02,26896.0,26889.0,0.48643877]
[1693498751328,0.34757876,26893.0,26885.0,0.1]
[1693498751543,0.02,26892.0,26885.0,0.36768085]
[1693498751745,0.02,26892.0,26865.0,0.04]
[1693498751746,0.3916,26888.0,26876.0,0.04]
[1693498751955,0.3916,26886.0,26876.0,0.40768085]
[1693498752165,0.34757876,26882.0,26877.0,0.28003891]
[1693498752391,0.34757876,26882.0,26876.0,0.36768085]
[1693498752392,0.36768085,26881.0,26876.0,0.22419265]
[1693498752596,0.36768085,26881.0,26876.0,0.28886673]
[1693498752597,0.7475372,26881.0,26876.0,0.28886673]
[1693498752801,0.16207876,26879.0,26876.0,0.28886673]
[1693498753006,0.32,26878.0,26871.0,0.02]
[1693498753212,0.32,26878.0,26877.0,0.10280546]
[1693498753420,0.32,26878.0,26866.0,0.08534]
[1693498753421,0.16207876,26875.0,26866.0,0.08534]
[1693498753629,0.16207876,26875.0,26865.0,0.08]
[1693498753630,0.02,26874.0,26867.0,0.36768085]
[1693498753848,0.1855,26872.0,26867.0,0.36768085]
[1693498754052,0.32,26874.0,26860.0,0.07122]
[1693498754053,0.3,26874.0,26870.0,0.36768085]
[1693498754678,0.02,26873.0,26870.0,0.36768085]
[1693498754877,0.015,26873.0,26870.0,0.60862061]
[1693498755085,0.3,26873.0,26871.0,0.10780671]
[1693498755296,0.3,26877.0,26872.0,0.53475319]
[1693498755501,0.3,26877.0,26873.0,0.51475319]
[1693498755917,0.3,26877.0,26873.0,0.36768085]
[1693498756121,0.149022,26881.0,26873.0,0.36768085]
[1693498756122,0.34807876,26878.0,26873.0,0.36768085]
[1693498756328,0.16207876,26878.0,26874.0,0.14707234]
[1693498756544,0.16207876,26878.0,26874.0,0.36768085]
[1693498756753,0.16207876,26878.0,26867.0,0.02]
[1693498756754,0.186,26876.0,26867.0,0.09402]
[1693498756959,0.186,26876.0,26863.0,0.17612]
[1693498756960,0.3916,26874.0,26863.0,0.02]
[1693498757165,0.3916,26874.0,26864.0,0.36768085]
[1693498757166,0.34807876,26872.0,26864.0,0.36768085]
[1693498757375,0.6916,26871.0,26864.0,0.36768085]
[1693498757579,0.6916,26871.0,26865.0,0.10526935]
[1693498757580,0.3916,26869.0,26865.0,0.10526935]
[1693498757793,0.3916,26869.0,26865.0,0.4817659]
[1693498757794,0.02,26868.0,26865.0,0.4817659]
[1693498757997,0.3916,26867.0,26865.0,0.4817659]
[1693498758587,0.3916,26867.0,26866.0,0.36768085]
[1693498758816,0.6916,26867.0,26866.0,0.36768085]
[1693498759230,0.3,26867.0,26866.0,0.36768085]
[1693498759649,0.46207876,26872.0,26866.0,0.36768085]
[1693498759858,0.46207876,26872.0,26867.0,0.14707234]
[1693498759859,0.3,26871.0,26867.0,0.14707234]
[1693498760076,0.3,26871.0,26864.0,0.003]
[1693498760077,0.16207876,26869.0,26864.0,0.003]
[1693498760283,0.16207876,26869.0,26862.0,0.020705]
[1693498760284,0.4916,26868.0,26862.0,0.020705]
[1693498760500,0.3916,26861.0,26845.0,0.12]
[1693498760710,0.75928085,26861.0,26848.0,0.12]
[1693498760919,1.0,26860.0,26852.0,0.12]
[1693498761128,1.0,26860.0,26851.0,0.36768085]
[1693498761129,1.0,26860.0,26854.0,0.12]
[1693498761333,0.3,26863.0,26854.0,0.12]
[1693498761334,0.6916,26863.0,26855.0,0.06]
[1693498761508,0.16207876,26865.0,26855.0,0.06]
[1693498761509,0.7116,26862.0,26861.0,0.02317981]
[1693498761739,0.4116,26862.0,26861.0,0.02317981]
[1693498761952,0.7116,26862.0,26861.0,0.02317981]
[1693498762157,0.7116,26862.0,26853.0,0.1]
[1693498762158,0.87367876,26862.0,26853.0,0.1]
[1693498762333,0.7286,26861.0,26859.0,0.00674696]
[1693498762541,0.5976,26860.0,26859.0,0.00674696]
[1693498762788,0.5976,26860.0,26855.0,0.003]
[1693498762995,0.3916,26860.0,26856.0,0.36768085]
[1693498763199,0.28341444,26860.0,26856.0,0.36768085]
[1693498763406,0.4116,26859.0,26856.0,0.36768085]
[1693498764022,0.3916,26857.0,26856.0,0.36768085]
[1693498764640,0.3916,26857.0,26856.0,0.37068085]
[1693498764845,0.3,26858.0,26856.0,0.37068085]
[1693498765051,0.3,26860.0,26856.0,0.36768085]
[1693498765257,0.3,26860.0,26857.0,0.00642654]
[1693498765456,0.3,26860.0,26858.0,0.36768085]
[1693498765609,0.52788931,26860.0,26858.0,0.36768085]
[1693498765814,0.70195824,26859.0,26856.0,0.003]
[1693498766013,0.334,26858.0,26856.0,0.006]
[1693498766216,0.4116,26857.0,26856.0,0.006]
[1693498766420,0.4116,26857.0,26849.0,0.04]
[1693498766421,0.7116,26857.0,26849.0,0.04]
[1693498766626,0.3,26856.0,26853.0,0.36768085]
[1693498766800,0.9974,26862.0,26855.0,0.36768085]
[1693498766801,0.3916,26860.0,26855.0,0.36768085]
[1693498767003,0.037,26860.0,26857.0,0.00552525]
[1693498767199,0.037,26860.0,26858.0,0.36768085]
[1693498767200,0.28267638,26860.0,26858.0,0.36768085]
[1693498767429,0.16207876,26862.0,26858.0,0.36768085]
[1693498767430,0.186,26861.0,26858.0,0.36768085]
[1693498767666,0.186,26861.0,26847.0,0.3]
[1693498767667,0.16207876,26859.0,26853.0,0.003]
[1693498767813,0.037,26856.0,26853.0,0.37068085]
[1693498768209,0.5776,26858.0,26853.0,0.36768085]
[1693498768477,0.7116,26857.0,26853.0,0.36768085]
[1693498768805,0.2488459,26855.0,26853.0,0.36768085]
[1693498769010,0.2488459,26855.0,26854.0,0.36768085]
[1693498769317,0.5488459,26855.0,26854.0,0.36768085]
[1693498769474,0.3,26855.0,26854.0,0.36768085]
[1693498769650,0.61401656,26855.0,26854.0,0.36768085]
[1693498769852,0.60043625,26855.0,26854.0,0.36768085]
[1693498770287,0.30043625,26855.0,26854.0,0.51475319]
[1693498770679,0.037,26857.0,26854.0,0.50156085]
[1693498770880,1.73528107,26865.0,26854.0,0.50156085]
[1693498770881,1.58620007,26865.0,26856.0,0.46768085]
[1693498771089,1.58620007,26865.0,26859.0,0.36768085]
[1693498771296,1.58620007,26865.0,26861.0,0.36768085]
[1693498771297,0.03000007,26865.0,26861.0,0.36768085]
[1693498771505,0.39991312,26872.0,26861.0,0.36768085]
[1693498771506,0.9974,26871.0,26861.0,0.38768085]
[1693498771709,0.9974,26871.0,26862.0,0.1456]
[1693498771909,0.49432117,26872.0,26862.0,0.13354]
[1693498772188,0.037,26864.0,26863.0,0.0816]
[1693498772394,0.037,26864.0,26863.0,0.44616085]
[1693498772600,0.16207876,26870.0,26863.0,0.36768085]
[1693498772803,0.16207876,26870.0,26860.0,0.04]
[1693498772804,0.0359372,26869.0,26864.0,0.51475319]
[1693498773005,0.31851613,26868.0,26864.0,0.52003187]
[1693498773209,0.036,26865.0,26864.0,0.37344521]
[1693498773410,0.036,26865.0,26864.0,0.36768085]
[1693498773621,0.16207876,26866.0,26862.0,0.003]
[1693498773831,0.16207876,26866.0,26851.0,0.02]
[1693498773832,3.29838005,26865.0,26854.0,0.06588]
[1693498774041,3.29838005,26865.0,26854.0,0.36768085]
[1693498774042,0.4316,26863.0,26854.0,0.36768085]
[1693498774244,0.3916,26859.0,26854.0,0.36768085]
[1693498774448,0.7116,26858.0,26854.0,0.36768085]
[1693498774656,0.7475372,26858.0,26854.0,0.36768085]
[1693498775704,0.7475372,26858.0,26854.0,0.36868085]
[1693498775919,0.7475372,26858.0,26854.0,0.35089039]
[1693498776337,0.7475372,26858.0,26854.0,0.35189039]
[1693498776338,0.7835372,26858.0,26854.0,0.35189039]
[1693498776555,0.8195372,26858.0,26854.0,0.35189039]
[1693498776755,0.2359677,26857.0,26854.0,0.35189039]
[1693498776962,0.8195372,26858.0,26854.0,0.001]
[1693498776963,0.32,26856.0,26854.0,0.001]
[1693498777170,0.32,26856.0,26854.0,0.36868085]
[1693498777381,0.32,26856.0,26854.0,0.001]
[1693498777595,0.5776,26855.0,26845.0,0.07362]
[1693498777799,0.02,26854.0,26846.0,0.36768085]
[1693498778002,0.02,26854.0,26846.0,0.45096085]
[1693498778003,0.16207876,26853.0,26846.0,0.45096085]
[1693498778216,0.32,26854.0,26846.0,0.45096085]
[1693498778217,0.3,26854.0,26848.0,0.36768085]
[1693498778425,0.28880791,26853.0,26848.0,0.5195312]
[1693498778632,0.26250717,26853.0,26848.0,0.44100085]
[1693498778838,0.02,26852.0,26848.0,0.36768085]
[1693498779041,0.02,26853.0,26848.0,0.36768085]
[1693498779244,0.036,26853.0,26848.0,0.36768085]
[1693498779450,0.02,26852.0,26848.0,0.36768085]
[1693498779659,0.30569804,26854.0,26849.0,0.09432]
[1693498779863,0.19807876,26856.0,26850.0,0.51475319]
[1693498779864,0.2729196,26853.0,26850.0,0.51475319]
[1693498780067,0.16207876,26856.0,26850.0,0.36768085]
[1693498780202,0.16207876,26856.0,26850.0,0.51475319]
[1693498780203,0.036,26854.0,26850.0,0.51475319]
[1693498780408,0.036,26854.0,26850.0,0.36768085]
[1693498780409,0.24923804,26853.0,26850.0,0.36768085]
[1693498780613,0.8976,26855.0,26850.0,0.36768085]
[1693498780614,0.3,26852.0,26850.0,0.36768085]
[1693498780815,0.8976,26855.0,26850.0,0.36768085]
[1693498781026,0.036,26854.0,26850.0,0.51475319]
[1693498781256,0.02,26853.0,26850.0,0.36768085]
[1693498781461,0.056,26853.0,26846.0,0.06348]
[1693498781669,0.056,26853.0,26847.0,0.36768085]
[1693498781670,0.60967876,26853.0,26847.0,0.36768085]
[1693498781871,0.336,26852.0,26847.0,0.36768085]
[1693498782069,0.02,26851.0,26847.0,0.36768085]
[1693498782479,0.56251442,26852.0,26847.0,0.36768085]
[1693498782701,0.56251442,26852.0,26847.0,0.51475319]
[1693498782909,0.56251442,26852.0,26848.0,0.07164]
[1693498783110,0.52651442,26852.0,26849.0,0.36768085]
[1693498783517,0.036,26851.0,26849.0,0.36768085]
[1693498783750,0.036,26851.0,26850.0,0.00478945]
[1693498783941,0.036,26851.0,26850.0,0.3724703]
[1693498784756,0.3,26854.0,26850.0,0.3724703]
[1693498784958,0.036,26851.0,26850.0,0.3724703]
[1693498785166,0.036,26851.0,26850.0,0.51475319]
[1693498785370,1.5562,26859.0,26851.0,0.02]
[1693498785580,0.149119,26858.0,26853.0,0.36768085]
[1693498785780,0.149119,26858.0,26854.0,0.14707234]
[1693498785985,0.149119,26858.0,26855.0,0.36768085]
[1693498786188,1.40847059,26864.0,26856.0,0.14707234]
[1693498786189,0.9974,26864.0,26856.0,0.14707234]
[1693498786395,0.037,26858.0,26857.0,0.37430994]
[1693498786601,0.037,26858.0,26857.0,0.47186994]
[1693498786797,0.24971624,26863.0,26857.0,0.47036994]
[1693498787042,0.24971624,26863.0,26858.0,0.51475319]
[1693498787249,0.24971624,26863.0,26858.0,0.59605319]
[1693498787597,0.39879024,26863.0,26858.0,0.59263319]
[1693498787803,0.43902433,26863.0,26858.0,0.36768085]